bitfinex/quotes_ETHUSD_20210401
["timestamp","ask_amount","ask_price","bid_price","bid_amount"]
[1617301872721,1.66264713,1950.7,1950.1,1.34640582]
[1617301872921,1.66264713,1950.7,1950.2,0.38]
[1617301873122,1.66264713,1950.7,1950.4,0.39]
[1617301873322,1.66264713,1950.7,1950.2,0.94640582]
[1617301873521,1.66264713,1950.7,1950.4,0.94640582]
[1617301873923,1.66264713,1950.7,1950.2,0.94640582]
[1617301874124,1.66264713,1950.7,1950.4,0.84640582]
[1617301874328,1.66264713,1950.7,1950.5,2.94361776]
[1617301874526,1.66264713,1950.7,1950.6,0.4]
[1617301874729,22.6742,1952.3,1950.6,0.4]
[1617301874730,44.78187174,1952.3,1950.6,0.4]
[1617301874927,22.10767174,1952.3,1950.9,0.378]
[1617301875127,22.10767174,1952.3,1951.7,0.41]
[1617301875128,0.39237835,1952.0,1951.7,0.41]
[1617301875358,0.39237835,1952.0,1951.7,2.94083854]
[1617301875553,0.39237835,1952.0,1951.8,0.13825572]
[1617301875753,0.39237835,1952.0,1951.8,3.31026082]
[1617301875954,0.39237835,1952.0,1951.8,5.65626082]
[1617301876153,0.39,1952.3,1951.8,3.77666664]
[1617301876353,0.39,1952.3,1951.9,4.0]
[1617301876555,0.09329615,1952.4,1952.0,2.89534128]
[1617301876762,0.19345363,1952.9,1952.0,0.09406894]
[1617301876957,0.19345363,1952.9,1952.3,0.41]
[1617301877159,0.42144342,1952.8,1952.3,0.41]
[1617301877362,0.42144342,1952.8,1952.7,0.84640582]
[1617301877558,0.42144342,1952.8,1952.4,4.0]
[1617301877559,0.42144342,1952.8,1952.4,6.99781392]
[1617301877759,0.42144342,1952.8,1952.4,6.94781392]
[1617301877976,0.11489705,1952.9,1952.7,0.84640582]
[1617301878174,0.11489705,1952.9,1952.7,0.39]
[1617301878373,2.66489705,1952.9,1952.7,0.39]
[1617301878574,2.66489705,1952.9,1952.7,1.23640582]
[1617301878775,2.66489705,1952.9,1952.7,0.84640582]
[1617301878976,28.95,1952.8,1952.5,2.90400264]
[1617301879176,0.39,1952.6,1952.5,2.90400264]
[1617301879376,0.39,1952.6,1952.5,2.64e-06]
[1617301879578,2.66489705,1952.9,1952.5,2.64e-06]
[1617301879778,2.66489705,1952.9,1952.8,0.39]
[1617301879779,7.05e-06,1952.9,1952.8,0.39]
[1617301879982,7.05e-06,1952.9,1952.8,1.41078542]
[1617301880176,2.083384,1953.3,1952.8,1.41078542]
[1617301880177,2.083384,1953.3,1952.9,0.09406894]
[1617301880605,2.083384,1953.3,1953.2,0.19628937]
[1617301881006,2.083384,1953.3,1953.2,1.14075851]
[1617301881206,2.463384,1953.3,1953.2,1.14075851]
[1617301881407,2.083384,1953.3,1953.2,1.14075851]
[1617301881606,2.083384,1953.3,1953.2,2.28025692]
[1617301881808,0.00720956,1953.8,1953.2,4.02782746]
[1617301882008,0.00720956,1953.8,1953.3,0.09406894]
[1617301882207,0.00720956,1953.8,1953.7,0.41]
[1617301882612,0.00720956,1953.9,1953.7,0.39]
[1617301882808,0.00720956,1953.9,1953.8,0.38]
[1617301883012,0.00720956,1953.9,1953.7,0.94446914]
[1617301883259,0.00720956,1953.9,1953.8,3.28496892]
[1617301883644,0.00720956,1953.9,1953.8,4.22943806]
[1617301883846,0.00720956,1953.9,1953.8,3.76846914]
[1617301884046,0.00720956,1953.9,1953.8,4.10446914]
[1617301884245,1.30425707,1954.8,1953.8,4.10446914]
[1617301884246,1.66146663,1954.8,1953.8,4.10446914]
[1617301884448,1.26146663,1954.8,1953.9,0.09406894]
[1617301884846,2.84339206,1954.8,1953.9,0.09406894]
[1617301885047,2.84339206,1954.8,1953.9,3.17709034]
[1617301885250,0.4,1954.5,1954.0,0.4]
[1617301885448,1.26146663,1954.8,1954.0,0.4]
[1617301885647,1.26146663,1954.8,1954.1,0.09406894]
[1617301885851,0.41055283,1954.7,1954.1,0.09406894]
[1617301886252,4.23201946,1954.8,1954.7,0.53391631]
[1617301886450,3.82201946,1954.8,1954.2,0.39]
[1617301886654,4.22201946,1954.8,1954.1,0.53391631]
[1617301886851,3.77201946,1954.8,1954.7,0.53391631]
[1617301887050,3.77201946,1954.8,1954.4,0.4]
[1617301887250,3.77201946,1954.8,1954.1,0.53391631]
[1617301887452,3.77201946,1954.8,1954.7,0.53391631]
[1617301887652,14.72201946,1954.8,1954.1,0.62798525]
[1617301887856,14.72201946,1954.8,1954.1,0.53391631]
[1617301888052,14.72201946,1954.8,1954.7,0.53391631]
[1617301888254,10.44924946,1954.8,1954.0,3.58395383]
[1617301888477,2.77201946,1954.8,1954.2,2.13855226]
[1617301888677,2.77201946,1954.8,1954.3,0.38]
[1617301888879,2.77201946,1954.8,1954.0,5.50257503]
[1617301889077,2.77201946,1954.8,1954.2,3.46253847]
[1617301889480,0.01487192,1954.7,1954.4,0.4]
[1617301889679,0.01487192,1954.7,1954.2,0.94398621]
[1617301889879,0.01487192,1954.7,1954.3,2.232]
[1617301890082,0.01487192,1954.7,1954.2,8.27320717]
[1617301890278,0.01487192,1954.7,1954.3,0.94398621]
[1617301890483,1.40312449,1954.7,1954.1,7.17e-06]
[1617301890683,1.40312449,1954.7,1953.5,7.4e-06]
[1617301890684,0.09406894,1954.5,1953.5,7.4e-06]
[1617301890885,0.4,1953.6,1953.5,7.4e-06]
[1617301891103,13.75091322,1955.8,1953.5,7.4e-06]
[1617301891304,6.61131946,1954.8,1953.5,7.4e-06]
[1617301891508,6.61131946,1954.8,1952.8,0.39]
[1617301891509,0.052,1954.2,1954.1,0.38]
[1617301891711,0.052,1954.2,1954.1,1.0090527]
[1617301891910,0.052,1954.2,1953.3,2.286]
[1617301892111,15.09,1953.4,1952.8,0.39]
[1617301892509,0.09406894,1953.3,1953.0,0.38]
[1617301892708,13.79406894,1953.4,1953.0,0.38]
[1617301892912,0.41,1953.1,1952.8,0.5089051]
[1617301893112,13.79406894,1953.4,1952.2,1.55206894]
[1617301893113,0.39,1952.9,1952.2,1.55206894]
[1617301893312,7.68474,1952.7,1952.2,8.94e-06]
[1617301893512,3.02787418,1952.6,1952.0,1.762e-05]
[1617301893735,0.09406894,1952.5,1952.0,1.762e-05]
[1617301894132,0.09406894,1952.5,1951.5,0.25001762]
[1617301894133,17.8,1952.1,1951.5,0.25001762]
[1617301894333,17.8,1952.1,1951.3,1.668]
[1617301894334,18.19,1952.1,1951.3,1.704]
[1617301894534,3.02787418,1952.0,1951.3,1.704]
[1617301894734,29.34,1951.4,1951.3,1.302]
[1617301895036,29.34,1951.4,1950.2,17.509]
[1617301895037,29.34,1951.4,1950.0,20.0]
[1617301895239,29.34,1951.4,1950.1,2.344]
[1617301895240,5.01,1951.1,1950.1,2.344]
[1617301895436,25.0,1950.2,1950.1,0.64401168]
[1617301895638,25.0,1950.2,1950.1,1.53584235]
[1617301895836,0.09406894,1951.0,1950.1,0.13784235]
[1617301895837,0.09406894,1950.7,1950.1,0.13784235]
[1617301896033,0.09406894,1950.7,1949.6,0.39]
[1617301896455,0.09406894,1950.7,1949.5,1.02456514]
[1617301896456,0.4,1950.4,1949.5,1.02456514]
[1617301896657,11.54013162,1950.6,1949.8,0.38]
[1617301896856,0.38,1950.5,1949.8,0.38]
[1617301897055,0.41,1950.3,1949.5,1.02456514]
[1617301897257,0.41,1950.3,1949.5,0.77456514]
[1617301897455,0.41,1950.3,1950.0,5.43e-06]
[1617301897656,3.00551988,1950.2,1950.0,5.43e-06]
[1617301897856,0.4,1950.1,1950.0,5.43e-06]
[1617301898055,8.85759,1950.5,1950.0,0.41000543]
[1617301898056,5.01,1950.5,1950.0,0.41000543]
[1617301898260,0.01487192,1950.6,1950.0,5.43e-06]
[1617301898455,1.6642287,1950.5,1950.0,5.43e-06]
[1617301898657,1.6642287,1950.5,1950.0,0.38000543]
[1617301898856,2.0442287,1950.5,1950.0,0.38000543]
[1617301899088,0.38,1950.5,1949.7,0.09000543]
[1617301899291,0.4,1949.9,1949.5,0.77456514]
[1617301899491,0.4,1949.9,1949.5,5.14e-06]
[1617301899690,0.39,1949.6,1949.1,1.0]
[1617301900088,0.39,1949.3,1949.1,1.0]
[1617301900289,0.28,1950.1,1949.1,1.0]
[1617301900290,3.30294788,1950.1,1949.1,1.0]
[1617301900489,0.09406894,1950.0,1949.1,1.0]
[1617301900692,0.09406894,1950.0,1949.5,0.39]
[1617301900891,0.09406894,1950.0,1949.1,2.03729394]
[1617301900892,3.11701682,1950.0,1949.1,2.03729394]
[1617301901087,3.11701682,1950.0,1949.1,2.44729394]
[1617301901088,0.39,1949.7,1949.1,2.44729394]
[1617301901290,0.09406894,1949.8,1949.3,0.38]
[1617301901490,0.09406894,1949.8,1949.1,2.03729394]
[1617301901700,0.09406894,1949.8,1949.1,1.98729394]
[1617301901903,0.4,1949.9,1949.3,0.41]
[1617301902102,0.50406894,1950.0,1949.3,1.03995772]
[1617301902501,0.09406894,1950.0,1949.3,1.03995772]
[1617301902700,0.01487192,1949.9,1949.4,15.05]
[1617301902903,0.01487192,1949.9,1949.8,22.25]
[1617301903105,2.02406894,1950.1,1949.8,25.98]
[1617301903106,1.086e-05,1950.1,1949.8,25.98]
[1617301903303,1.086e-05,1950.1,1949.9,2.99212058]
[1617301903508,1.086e-05,1950.1,1950.0,0.39]
[1617301903902,0.37908327,1950.6,1950.1,0.09406894]
[1617301904103,0.37908327,1950.6,1950.5,0.39]
[1617301904331,0.37908327,1950.6,1950.5,26.73]
[1617301904332,3.27e-06,1950.6,1950.5,26.73]
[1617301904530,3.27e-06,1950.6,1950.5,30.73]
[1617301904932,3.27e-06,1950.6,1950.5,38.73]
[1617301905137,1.0,1951.9,1950.6,1.34]
[1617301905335,1.0,1951.9,1951.4,0.41]
[1617301905531,1.0,1951.9,1951.6,0.38]
[1617301905733,1.0,1951.9,1951.5,0.39]
[1617301905932,1.0,1951.9,1951.3,0.09406894]
[1617301906332,1.0,1951.9,1951.3,1.44406894]
[1617301906533,0.41,1951.8,1951.3,1.84406894]
[1617301906735,0.38,1951.7,1951.2,0.09406894]
[1617301906958,0.39,1951.6,1951.2,0.09406894]
[1617301907358,1.0,1951.9,1951.1,0.09406894]
[1617301907559,1.0,1951.9,1951.3,0.39]
[1617301907759,0.1,1952.0,1950.9,1.506]
[1617301907760,0.49,1952.0,1951.4,27.7]
[1617301907962,0.49,1952.0,1951.5,0.09406894]
[1617301908161,3.04,1952.0,1951.5,1.10538837]
[1617301908362,3.04,1952.0,1951.5,1.01131943]
[1617301908567,0.38,1951.8,1951.5,1.01131943]
[1617301908769,0.38,1951.6,1951.5,1.01131943]
[1617301909162,2.65,1952.0,1951.5,1.01131943]
[1617301909364,2.65,1952.0,1951.7,9.22070348]
[1617301909573,3.05,1952.0,1951.7,9.22070348]
[1617301909773,0.38,1951.9,1951.7,9.09127836]
[1617301909974,2.65,1952.0,1951.7,9.09127836]
[1617301909975,29.35,1951.8,1951.7,9.09127836]
[1617301910574,29.35,1951.8,1951.7,0.14962174]
[1617301910774,29.35,1951.8,1951.7,1.74e-06]
[1617301910976,29.35,1951.8,1950.5,1.02598807]
[1617301911180,0.41,1950.9,1950.5,1.02598807]
[1617301911381,0.39,1950.6,1950.0,0.47406894]
[1617301911575,0.39,1950.6,1950.0,0.38]
[1617301911775,0.4,1950.4,1950.0,0.09406894]
[1617301911975,1.34936447,1950.9,1950.0,0.09406894]
[1617301912202,0.39,1950.5,1949.7,0.09406894]
[1617301912401,24.05,1950.2,1949.6,1.566]
[1617301912601,24.05,1950.2,1949.5,0.39]
[1617301912800,0.28,1950.9,1949.5,0.39]
[1617301913003,0.28,1950.9,1949.4,1.416]
[1617301913004,26.7924097,1951.0,1950.8,0.39]
[1617301913201,12.68999904,1951.6,1950.8,0.39]
[1617301913401,0.38,1951.3,1950.5,0.14]
[1617301913604,0.38,1951.3,1950.7,0.39]
[1617301913800,0.4,1951.3,1950.7,0.39]
[1617301914401,0.39,1950.8,1950.1,1.50360116]
[1617301914603,0.09406894,1951.6,1950.2,2.95038718]
[1617301914832,0.09406894,1951.4,1951.2,0.53325674]
[1617301915030,2.76028694,1952.0,1951.4,1.19999106]
[1617301915232,2.55,1952.0,1951.5,2.95038718]
[1617301915428,2.55,1952.0,1951.9,17.83]
[1617301915628,5.1,1952.0,1951.9,0.5356715]
[1617301916028,5.1,1952.0,1951.9,0.1556715]
[1617301916228,5.1,1952.0,1951.9,8.1556715]
[1617301916428,5.1,1952.0,1951.9,0.1556715]
[1617301916827,5.1,1952.0,1951.9,0.1056715]
[1617301917033,5.5,1952.0,1951.9,0.1056715]
[1617301917230,5.1,1952.0,1951.9,7.6056715]
[1617301917457,5.1,1952.0,1951.9,9.26562046]
[1617301917659,4.1,1952.0,1951.9,9.26562046]
[1617301917856,4.1,1952.0,1951.9,9.64562046]
[1617301918056,4.1,1952.0,1951.9,9.44562046]
[1617301918258,4.10613577,1952.0,1951.9,9.06562046]
[1617301918460,4.10613577,1952.0,1951.9,4.6e-07]
[1617301918660,5.30613577,1952.0,1951.9,4.6e-07]
[1617301918857,4.10613577,1952.0,1951.5,1.01142191]
[1617301919058,4.10613577,1952.0,1951.2,1.30211361]
[1617301919059,26.8,1951.6,1951.2,1.30211361]
[1617301919457,0.39,1951.5,1951.2,1.30211361]
[1617301919658,9.11613577,1952.0,1951.2,1.30211361]
[1617301919857,4.10613577,1952.0,1951.2,1.30211361]
[1617301920077,4.10613577,1952.0,1951.6,0.38]
[1617301920278,4.10613577,1952.0,1951.9,7.04]
[1617301920481,4.10613577,1952.0,1951.9,0.39]
[1617301920678,4.10613577,1952.0,1951.9,0.17027598]
[1617301921678,4.10613577,1952.0,1951.9,0.57027598]
[1617301921883,4.10613577,1952.0,1951.9,1.77027598]
[1617301922076,4.10613577,1952.0,1951.9,0.17027598]
[1617301922277,4.10613577,1952.0,1951.9,5.98e-06]
[1617301922278,27.40613577,1952.0,1951.9,5.98e-06]
[1617301922477,28.60613577,1952.0,1951.9,5.98e-06]
[1617301922706,28.60613577,1952.0,1951.2,0.28325865]
[1617301922707,39.52139547,1952.0,1951.2,0.28325865]
[1617301922904,13.88999904,1951.8,1951.2,0.28325865]
[1617301923103,1.2,1951.8,1951.2,0.28325865]
[1617301923304,10.25434,1951.7,1951.2,0.28325865]
[1617301923507,7.68826,1951.9,1951.2,0.28325865]
[1617301923704,19.2135197,1951.9,1951.2,0.68325865]
[1617301923905,19.2135197,1951.9,1951.2,0.28325865]
[1617301924105,29.33613577,1952.0,1951.2,0.28325865]
[1617301924106,15.65544074,1951.8,1951.2,0.28325865]
[1617301924307,5.01,1951.5,1951.2,0.28325865]
[1617301924512,29.29,1951.3,1951.2,8.65e-06]
[1617301925107,0.39,1951.3,1951.2,8.65e-06]
[1617301925327,7.69133,1951.4,1951.2,8.65e-06]
[1617301925526,14.09829,1951.7,1951.2,8.65e-06]
[1617301925527,26.8235497,1951.7,1951.2,8.65e-06]
[1617301925726,26.8235497,1951.7,1951.3,0.17186817]
[1617301925927,33.32009,1951.4,1951.3,0.17186817]
[1617301926127,34.52009,1951.4,1951.3,0.17186817]
[1617301926326,34.52009,1951.4,1951.0,11.01456181]
[1617301926327,33.32009,1951.4,1951.0,11.01456181]
[1617301926528,29.3,1951.1,1951.0,11.01456181]
[1617301926729,28.9,1951.1,1951.0,11.01456181]
[1617301926931,36.59179,1951.1,1951.0,11.00856181]
[1617301927134,48.1170497,1951.1,1951.0,11.00856181]
[1617301927329,49.3170497,1951.1,1951.0,11.00856181]
[1617301927728,49.3170497,1951.1,1950.1,0.48406894]
[1617301927729,28.9,1951.0,1950.1,0.48406894]
[1617301927959,7.69277,1950.7,1950.1,0.48406894]
[1617301928163,0.4,1950.4,1950.1,0.48406894]
[1617301928559,1.4351835,1950.3,1950.1,0.48406894]
[1617301928758,1.8351835,1950.3,1950.1,0.48406894]
[1617301928961,14.10888,1950.3,1950.1,0.48406894]
[1617301929158,2.5651463,1950.7,1950.2,0.4]
[1617301929558,13.090406,1950.7,1950.1,0.48406894]
[1617301929764,14.745793,1950.7,1950.2,0.4]
[1617301929959,12.68999904,1950.6,1950.1,0.48406894]
[1617301930159,2.5651463,1950.7,1950.1,0.48406894]
[1617301930361,10.25734,1950.8,1950.2,28.9]
[1617301930582,14.581,1951.6,1950.3,12.9652114]
[1617301930783,5.65,1952.0,1950.3,12.9652114]
[1617301930784,5.65,1952.0,1951.2,0.39]
[1617301930982,5.65,1952.0,1951.4,1.2]
[1617301931180,5.65,1952.0,1951.6,1.2]
[1617301931379,5.65,1952.0,1951.8,1.2]
[1617301931578,5.04707,1952.0,1951.9,1.6]
[1617301931780,5.04707,1952.0,1951.9,8.54780706]
[1617301931781,2.69707,1952.0,1951.9,8.54780706]
[1617301931980,2.69707,1952.0,1951.8,7.68451]
[1617301932200,0.4,1951.9,1951.6,1.03893707]
[1617301932385,0.4,1951.9,1950.9,0.09406894]
[1617301932386,2.82507884,1951.9,1950.9,0.09406894]
[1617301932581,9.06673141,1951.9,1950.5,0.09406894]
[1617301932783,3.84531,1951.6,1950.4,0.09406894]
[1617301932984,4.37363056,1951.5,1950.2,0.09406894]
[1617301933204,0.39,1950.7,1950.2,0.09406894]
[1617301933603,0.38,1950.5,1950.2,0.09406894]
[1617301933803,3.84686,1950.7,1950.1,0.57813788]
[1617301934003,6.75706512,1950.5,1950.1,0.48406894]
[1617301934204,1.35,1950.4,1950.1,0.48406894]
[1617301934404,0.97,1950.4,1950.1,0.48406894]
[1617301934602,5.01,1950.5,1950.1,0.48406894]
[1617301934806,6.21,1950.7,1950.1,0.48406894]
[1617301935007,12.96266381,1950.3,1950.2,0.41]
[1617301935403,12.96266381,1950.3,1950.1,5.26929744]
[1617301935604,30.1,1950.2,1950.1,4.7852285]
[1617301935825,30.1,1950.2,1949.4,4.77929726]
[1617301935826,0.09406894,1950.0,1949.4,4.77929726]
[1617301936024,6.30406894,1950.0,1949.4,4.77929726]
[1617301936224,0.09406894,1950.0,1949.4,4.77929726]
[1617301936426,5.10406894,1950.0,1949.4,5.16929726]
[1617301936623,2.0523496,1950.1,1949.6,0.39]
[1617301936823,0.09406894,1950.0,1949.4,4.77929726]
[1617301937021,0.09406894,1950.0,1949.7,0.41]
[1617301937424,2.0523496,1950.1,1949.4,4.77929726]
[1617301937425,2.14641854,1950.1,1949.4,4.77929726]
[1617301937633,2.14641854,1950.1,1949.4,5.15929726]
[1617301937634,3.34641854,1950.1,1949.4,5.15929726]
[1617301937825,8.09691,1949.9,1949.4,4.77929726]
[1617301938025,0.09406894,1949.8,1949.3,0.4]
[1617301938227,0.09406894,1949.8,1949.4,0.4]
[1617301938455,1.51639777,1949.7,1949.4,0.4]
[1617301938655,0.51639777,1949.7,1949.5,0.39]
[1617301938855,3.84846,1950.0,1949.5,0.34]
[1617301938856,0.09406894,1950.0,1949.5,0.34]
[1617301939056,0.09406894,1950.0,1949.6,0.39]
[1617301939257,2.55,1950.1,1949.8,0.38]
[1617301939456,2.55,1950.1,1950.0,0.39]
[1617301939657,2.55,1950.1,1949.7,0.4]
[1617301940263,2.55,1950.1,1949.1,0.95]
[1617301940461,2.55,1950.1,1949.3,0.39]
[1617301940462,0.09406894,1950.0,1949.3,0.39]
[1617301940660,0.25676194,1950.0,1949.9,0.12201804]
[1617301940860,0.162693,1950.0,1949.9,0.12201804]
[1617301941075,28.712693,1950.0,1949.9,0.12201804]
[1617301941274,29.86797577,1950.0,1949.9,0.12201804]
[1617301941677,28.712693,1950.0,1949.9,0.12201804]
[1617301941877,0.162693,1950.0,1949.9,5.27201804]
[1617301942078,0.162693,1950.0,1949.9,5.67201804]
[1617301942476,0.162693,1950.0,1949.9,0.4]
[1617301942878,0.162693,1950.0,1949.9,0.35]
[1617301943479,2.55,1950.1,1949.9,8.04271]
[1617301943480,3e-06,1950.1,1949.9,8.04271]
[1617301943699,13.39482409,1951.3,1950.1,18.4]
[1617301943902,0.68,1951.8,1951.0,0.14]
[1617301944099,0.4,1951.5,1950.9,0.24]
[1617301944499,0.4,1951.5,1950.3,0.09406894]
[1617301944700,0.39,1951.3,1950.5,10.25251]
[1617301944900,0.39,1951.3,1950.6,0.09406894]
[1617301945098,0.39,1951.1,1950.3,0.09406894]
[1617301945299,0.39,1951.1,1950.3,0.49406894]
[1617301945502,2.83,1951.3,1950.3,8.94e-06]
[1617301945503,0.39,1950.9,1950.3,8.94e-06]
[1617301945700,8.08337,1950.9,1950.3,8.94e-06]
[1617301945899,1.29406,1950.8,1950.3,8.94e-06]
[1617301946099,0.39,1950.9,1950.3,8.94e-06]
[1617301946100,0.09406,1950.6,1950.3,8.94e-06]
[1617301946330,0.4,1950.4,1950.3,8.94e-06]
[1617301946529,0.09406,1950.6,1950.3,8.94e-06]
[1617301946726,0.49406,1950.6,1949.8,0.38106694]
[1617301947129,15.0,1950.0,1949.8,8.07421694]
[1617301947327,15.0,1950.0,1949.9,0.38]
[1617301947929,1.14733,1950.0,1949.9,1.58]
[1617301948136,0.09406894,1951.2,1950.1,0.14]
[1617301948331,2.55,1951.3,1951.0,0.4]
[1617301948532,2.55,1951.3,1951.2,0.39]
[1617301948734,1.55,1951.3,1951.2,3.84]
[1617301948949,1.09406894,1951.9,1951.2,3.84]
[1617301949152,1.09406894,1951.9,1951.5,7.68617]
[1617301949349,1.09406894,1951.9,1951.8,0.4]
[1617301949350,1.0,1951.9,1951.8,0.4]
[1617301949549,1.0,1951.9,1951.8,0.15]
[1617301949750,1.0,1951.9,1951.8,3.15]
[1617301949948,1.00602266,1951.9,1951.8,3.79]
[1617301950149,1.00602266,1951.9,1951.8,0.39]
[1617301950551,1.00602266,1951.9,1951.8,10.6357]
[1617301950752,1.00602266,1951.9,1951.8,13.83102218]
[1617301950949,0.95602266,1951.9,1951.8,13.44102218]
[1617301951148,0.95602266,1951.9,1951.8,10.6357]
[1617301951773,6.35602266,1951.9,1951.8,10.6357]
[1617301951976,6.35602266,1951.9,1951.8,11.81017213]
[1617301952173,0.95602266,1951.9,1951.8,14.93017213]
[1617301952777,3.50602266,1951.9,1951.8,14.93017213]
[1617301952974,3.50602266,1951.9,1951.8,17.93017213]
[1617301953178,3.50602266,1951.9,1951.8,19.13017213]
[1617301953577,3.50602266,1951.9,1951.8,24.14017213]
[1617301953777,2.50602266,1951.9,1951.8,39.06543183]
[1617301953978,2.69707,1952.0,1951.8,58.50543183]
[1617301954204,2.69707,1952.0,1951.9,22.70973183]
[1617301954405,2.69707,1952.0,1951.9,33.32973183]
[1617301954605,2.69707,1952.0,1951.9,34.73373183]
[1617301954805,1.38,1952.9,1951.9,33.32973183]
[1617301955009,1.0,1952.9,1952.8,0.39]
[1617301955209,1.0,1952.9,1952.1,11.5252597]
[1617301955210,1.0,1952.9,1952.1,29.5352597]
[1617301955412,1.0,1952.9,1952.6,0.4]
[1617301955608,1.0,1952.9,1952.7,0.39]
[1617301955807,1.0,1952.9,1952.8,0.16708721]
[1617301956016,1.0,1952.9,1952.8,1.74708721]
[1617301956210,1.0,1952.9,1952.8,7.93155934]
[1617301956408,0.1616463,1953.5,1952.8,22.81681904]
[1617301956608,0.1616463,1953.5,1953.3,0.29]
[1617301956839,0.1616463,1953.5,1953.0,1.2]
[1617301957039,0.1616463,1953.5,1953.3,8.08883]
[1617301957239,0.1616463,1953.5,1953.3,12.68698245]
[1617301957438,0.1616463,1953.5,1953.3,16.08698245]
[1617301957640,0.1616463,1953.5,1953.4,3.3]
[1617301957838,6.3e-06,1953.5,1953.4,17.3252597]
[1617301958039,0.03,1953.8,1953.4,27.2252597]
[1617301958241,0.23754635,1954.3,1953.7,5.88447213]
[1617301958440,0.23754635,1954.3,1954.1,3.51]
[1617301958644,0.23754635,1954.3,1954.1,14.71]
[1617301958839,0.26,1955.0,1954.1,9.72]
[1617301958840,2.05101298,1954.8,1954.1,9.72]
[1617301959039,2.05101298,1954.8,1954.7,0.4]
[1617301959240,2.05101298,1954.8,1954.3,12.68418]
[1617301959456,2.98e-06,1954.9,1954.7,2.2199501]
[1617301959654,2.98e-06,1954.9,1954.8,3.55936476]
[1617301959854,0.09891274,1955.7,1954.8,33.64692662]
[1617301960054,0.09891274,1955.7,1955.1,0.26000298]
[1617301960256,0.16728427,1956.3,1955.4,30.59973183]
[1617301960460,0.07321533,1956.3,1956.1,0.39]
[1617301960653,0.04518714,1956.9,1955.7,3.11736042]
[1617301960654,0.41,1956.7,1955.7,3.11736042]
[1617301960851,0.41,1956.7,1955.7,6.03736042]
[1617301961051,0.41,1956.7,1956.1,1.74238222]
[1617301961256,0.41,1956.7,1955.7,24.31462012]
[1617301961257,0.41,1956.7,1955.9,5.01]
[1617301961452,0.41,1956.7,1956.0,3.11736042]
[1617301961854,0.13925608,1956.9,1956.2,0.104109]
[1617301962083,0.39,1956.8,1956.2,3.22146942]
[1617301962278,0.46867305,1956.4,1956.2,3.11736042]
[1617301962477,0.46867305,1956.4,1956.2,1.69993046]
[1617301962675,0.46867305,1956.4,1956.3,1.65]
[1617301962676,8.31867305,1956.4,1956.3,1.65]
[1617301962875,8.31867305,1956.4,1956.3,1.488]
[1617301963276,8.31867305,1956.4,1956.3,1.332]
[1617301963480,8.31867305,1956.4,1955.7,5.33447213]
[1617301963680,8.31867305,1956.4,1955.7,2.13e-06]
[1617301963681,28.29,1955.8,1955.7,2.13e-06]
[1617301964082,28.29,1955.8,1955.4,11.5265649]
[1617301964083,28.68,1955.8,1955.4,11.17906703]
[1617301964280,28.68,1955.8,1954.9,1.224]
[1617301964281,0.39,1955.5,1954.9,1.224]
[1617301964482,0.39,1955.5,1954.3,25.3503597]
[1617301964483,0.38,1955.0,1954.5,1.662]
[1617301964722,23.78,1954.6,1954.5,1.488]
[1617301964917,16.45,1954.6,1954.5,1.488]
[1617301965122,16.45,1954.6,1954.0,1.572]
[1617301965318,0.41,1954.5,1954.0,1.392]
[1617301965516,0.41,1954.3,1954.0,1.392]
[1617301965716,0.41,1954.3,1953.8,4.77721611]
[1617301965717,16.45,1954.6,1954.2,0.10483052]
[1617301965919,16.83,1954.6,1954.2,0.10483052]
[1617301966119,16.45,1954.6,1954.2,0.10483052]
[1617301966316,16.45,1954.6,1954.4,0.41]
[1617301966549,16.45,1954.6,1954.2,0.10483052]
[1617301966743,16.45,1954.6,1953.8,4.77721611]
[1617301966744,0.38,1954.3,1953.8,6.63e-06]
[1617301966946,0.38,1954.3,1953.1,1.38]
[1617301967143,0.39,1953.8,1953.1,1.38]
[1617301967346,0.28,1953.9,1953.1,1.28]
[1617301967541,0.39,1953.7,1953.1,0.9]
[1617301967743,4.97606528,1953.8,1953.4,0.41]
[1617301968143,2.45,1953.8,1953.7,0.4]
[1617301968542,2.45,1953.8,1953.5,3.08735328]
[1617301968742,1.45,1953.8,1953.5,0.4]
[1617301969542,0.09406894,1954.7,1953.8,4.4]
[1617301969745,0.16355605,1954.8,1953.8,4.4]
[1617301969746,0.16355605,1954.8,1954.2,0.4]
[1617301969959,0.46355605,1954.8,1953.9,1.671524]
[1617301970158,2.0467693,1954.7,1953.9,1.671524]
[1617301970355,2.0467693,1954.7,1953.8,4.4]
[1617301970555,0.41,1954.4,1953.8,4.4]
[1617301970756,2.0467693,1954.7,1954.6,0.16728635]
[1617301971759,12.1767693,1954.7,1954.6,0.16728635]
[1617301972056,12.1767693,1954.7,1954.6,6.35e-06]
[1617301972057,19.8527293,1954.7,1954.6,6.35e-06]
[1617301972500,0.301,1954.5,1953.3,0.14]
[1617301972697,0.4,1953.7,1953.2,1.44]
[1617301972893,0.39,1953.8,1953.1,32.66507816]
[1617301973494,12.7988512,1954.2,1953.2,4.4723918]
[1617301973693,11.78406798,1955.2,1953.3,23.3]
[1617301973894,0.322,1954.9,1953.5,0.14]
[1617301974095,0.38,1954.6,1953.6,0.09406894]
[1617301974299,28.9,1954.5,1953.5,0.13406894]
[1617301974494,28.85,1954.5,1953.5,0.13406894]
[1617301974892,31.4,1954.5,1953.5,0.13406894]
[1617301975108,0.39,1954.2,1953.5,0.13406894]
[1617301975710,2.95,1954.5,1953.8,0.39]
[1617301975914,2.95,1954.5,1953.9,3.12182558]
[1617301975915,2.55,1954.5,1953.9,3.12182558]
[1617301976110,2.55,1954.5,1953.9,4.61166794]
[1617301976310,2.55,1954.5,1954.1,5.01]
[1617301976510,2.55,1954.5,1954.2,0.39]
[1617301976711,2.55,1954.5,1954.2,1.81564762]